[Event "*** Titled Tuesday Blitz"]
[Site "Chess.com"]
[Date "2020.11.10"]
[Round "11"]
[White "Orest_Vovk"]
[Black "tsaruk_maks"]
[Result "0-1"]
[WhiteElo "2577"]
[BlackElo "2621"]
[TimeControl "180+1"]
[EndTime "12:12:54 PST"]
[Termination "tsaruk_maks won by resignation"]

1. d4 {[%clk 0:03:00.9]} 1... Nf6 {[%clk 0:02:58.8]} 2. Bf4 {[%clk 0:03:00.7]}
2... d5 {[%clk 0:02:57.7]} 3. e3 {[%clk 0:03:01]} 3... e6 {[%clk 0:02:58.6]} 4.
Nf3 {[%clk 0:03:01.4]} 4... Bd6 {[%clk 0:02:59.5]} 5. Bxd6 {[%clk 0:03:00.8]}
5... Qxd6 {[%clk 0:02:57]} 6. Nbd2 {[%clk 0:03:00.9]} 6... O-O {[%clk
0:02:57.4]} 7. Be2 {[%clk 0:03:01.3]} 7... c5 {[%clk 0:02:57.3]} 8. c3 {[%clk
0:03:00.4]} 8... Nc6 {[%clk 0:02:57.1]} 9. O-O {[%clk 0:03:00.1]} 9... e5 {[%clk
0:02:53.6]} 10. dxe5 {[%clk 0:03:00.2]} 10... Nxe5 {[%clk 0:02:54.5]} 11. c4
{[%clk 0:02:53.5]} 11... Bf5 {[%clk 0:02:26.5]} 12. cxd5 {[%clk 0:02:50.6]}
12... Rad8 {[%clk 0:02:19.6]} 13. Nc4 {[%clk 0:02:44.8]} 13... Nxc4 {[%clk
0:02:17.8]} 14. Bxc4 {[%clk 0:02:45.7]} 14... Be4 {[%clk 0:02:18]} 15. Qb3
{[%clk 0:02:35.5]} 15... Bxd5 {[%clk 0:00:46.1]} 16. Bxd5 {[%clk 0:02:29.8]}
16... Qxd5 {[%clk 0:00:46.2]} 17. Qxd5 {[%clk 0:02:27.4]} 17... Rxd5 {[%clk
0:00:47.1]} 18. Rfd1 {[%clk 0:02:27.6]} 18... Rfd8 {[%clk 0:00:47.5]} 19. Rxd5
{[%clk 0:02:27.5]} 19... Rxd5 {[%clk 0:00:48.4]} 20. Kf1 {[%clk 0:02:27.9]}
20... Ne4 {[%clk 0:00:47.2]} 21. Ke2 {[%clk 0:02:25.1]} 21... f6 {[%clk
0:00:47.3]} 22. Rc1 {[%clk 0:02:19.9]} 22... Kf7 {[%clk 0:00:46.5]} 23. Rc2
{[%clk 0:02:18]} 23... Ke6 {[%clk 0:00:45.8]} 24. Nd2 {[%clk 0:02:17.9]} 24...
Nxd2 {[%clk 0:00:14.8]} 25. Rxd2 {[%clk 0:02:18.8]} 25... Rxd2+ {[%clk
0:00:15.4]} 26. Kxd2 {[%clk 0:02:19.1]} 26... Kd5 {[%clk 0:00:15]} 27. Kd3
{[%clk 0:02:06.2]} 27... f5 {[%clk 0:00:13.9]} 28. a4 {[%clk 0:01:55.5]} 28...
b6 {[%clk 0:00:08.6]} 29. f3 {[%clk 0:01:48.6]} 29... a6 {[%clk 0:00:08.5]} 30.
e4+ {[%clk 0:01:42]} 30... fxe4+ {[%clk 0:00:08.2]} 31. fxe4+ {[%clk 0:01:42.9]}
31... Ke5 {[%clk 0:00:08.9]} 32. Kc4 {[%clk 0:01:43.3]} 32... Kxe4 {[%clk
0:00:07.5]} 33. a5 {[%clk 0:01:43.6]} 33... bxa5 {[%clk 0:00:07.3]} 34. Kxc5
{[%clk 0:01:43.8]} 34... Kd3 {[%clk 0:00:07.4]} 35. Kb6 {[%clk 0:01:40.7]} 35...
a4 {[%clk 0:00:07.6]} 36. Kxa6 {[%clk 0:01:33.6]} 36... Kc2 {[%clk 0:00:07.5]}
37. Ka5 {[%clk 0:01:34]} 37... Kb3 {[%clk 0:00:06.3]} 38. g3 {[%clk 0:00:58.9]}
38... h5 {[%clk 0:00:05.9]} 39. Kb5 {[%clk 0:00:52.4]} 39... g5 {[%clk 0:00:04]}
40. Ka5 {[%clk 0:00:44]} 40... g4 {[%clk 0:00:04.2]} 41. Kb5 {[%clk 0:00:44]}
41... Kxb2 {[%clk 0:00:03.9]} 42. Kxa4 {[%clk 0:00:43.7]} 42... Kc2 {[%clk
0:00:04.8]} 43. Kb4 {[%clk 0:00:44.3]} 43... Kd2 {[%clk 0:00:05.7]} 44. Kc4
{[%clk 0:00:45]} 44... Ke3 {[%clk 0:00:05.8]} 45. Kc3 {[%clk 0:00:37.9]} 45...
Kf3 {[%clk 0:00:04.9]} 46. Kd3 {[%clk 0:00:38.8]} 46... Kg2 {[%clk 0:00:05.3]}
47. Ke3 {[%clk 0:00:39.1]} 47... Kxh2 {[%clk 0:00:04.4]} 0-1

[Event "*** Titled Tuesday Blitz"]
[Site "Chess.com"]
[Date "2020.11.10"]
[Round "11"]
[White "andrzej"]
[Black "26andrej26"]
[Result "1-0"]
[WhiteElo "2405"]
[BlackElo "2520"]
[TimeControl "180+1"]
[EndTime "12:12:57 PST"]
[Termination "andrzej won on time"]

1. e4 {[%clk 0:03:00.9]} 1... c5 {[%clk 0:02:57.9]} 2. Nf3 {[%clk 0:03:01.4]}
2... d6 {[%clk 0:02:56.4]} 3. d4 {[%clk 0:03:01.9]} 3... cxd4 {[%clk 0:02:57.3]}
4. Nxd4 {[%clk 0:03:02.5]} 4... Nf6 {[%clk 0:02:57.8]} 5. Nc3 {[%clk 0:03:03.1]}
5... a6 {[%clk 0:02:58.4]} 6. Be3 {[%clk 0:03:03.5]} 6... e5 {[%clk 0:02:58.9]}
7. Nf3 {[%clk 0:03:04.1]} 7... Be7 {[%clk 0:02:55.4]} 8. Bc4 {[%clk 0:03:04.3]}
8... O-O {[%clk 0:02:55.6]} 9. O-O {[%clk 0:03:04.2]} 9... Be6 {[%clk
0:02:55.7]} 10. Bb3 {[%clk 0:03:03.3]} 10... Nc6 {[%clk 0:02:55.9]} 11. Qe2
{[%clk 0:02:57.3]} 11... Na5 {[%clk 0:02:55.9]} 12. Rfd1 {[%clk 0:02:54.6]}
12... Nxb3 {[%clk 0:02:55.4]} 13. cxb3 {[%clk 0:02:54.4]} 13... Qa5 {[%clk
0:02:46.2]} 14. Nd2 {[%clk 0:02:44.6]} 14... b5 {[%clk 0:02:43.9]} 15. Bg5
{[%clk 0:02:33.3]} 15... Rac8 {[%clk 0:02:42.1]} 16. Nf1 {[%clk 0:02:27.1]}
16... b4 {[%clk 0:02:40.4]} 17. Bxf6 {[%clk 0:02:27.1]} 17... Bxf6 {[%clk
0:02:37.4]} 18. Nd5 {[%clk 0:02:26.9]} 18... Bg5 {[%clk 0:02:36.8]} 19. Nfe3
{[%clk 0:02:20.8]} 19... g6 {[%clk 0:02:35.4]} 20. Nc4 {[%clk 0:02:17.8]} 20...
Qd8 {[%clk 0:02:32.4]} 21. Ndb6 {[%clk 0:02:13.2]} 21... Rc6 {[%clk 0:02:31]}
22. Nd5 {[%clk 0:02:08.1]} 22... f5 {[%clk 0:02:29.7]} 23. Nxb4 {[%clk 0:02:02]}
23... Bxc4 {[%clk 0:02:16.5]} 24. bxc4 {[%clk 0:01:57.3]} 24... Rc8 {[%clk
0:02:13.9]} 25. Nd5 {[%clk 0:01:44.1]} 25... fxe4 {[%clk 0:02:10.5]} 26. Qxe4
{[%clk 0:01:45]} 26... Qd7 {[%clk 0:02:00.5]} 27. Nb6 {[%clk 0:01:39.2]} 27...
Qa7 {[%clk 0:01:58.1]} 28. Nxc8 {[%clk 0:01:30.6]} 28... Qxf2+ {[%clk
0:01:57.6]} 29. Kh1 {[%clk 0:01:29.9]} 29... Rxc8 {[%clk 0:01:58.5]} 30. Qd5+
{[%clk 0:01:20.2]} 30... Kg7 {[%clk 0:01:53.9]} 31. Qxd6 {[%clk 0:01:19.8]}
31... Rxc4 {[%clk 0:01:47.7]} 32. Qxe5+ {[%clk 0:01:17.1]} 32... Kh6 {[%clk
0:01:46]} 33. Rd7 {[%clk 0:01:10.8]} 33... Bf6 {[%clk 0:01:26.3]} 34. Qd5 {[%clk
0:00:47.7]} 34... Rc2 {[%clk 0:01:06.7]} 35. Rg1 {[%clk 0:00:45.3]} 35... Rc5
{[%clk 0:00:50.2]} 36. Qg8 {[%clk 0:00:41.4]} 36... Bd4 {[%clk 0:00:39.5]} 37.
Rxh7+ {[%clk 0:00:31.9]} 37... Kg5 {[%clk 0:00:39.7]} 38. h4+ {[%clk 0:00:28.7]}
38... Kf5 {[%clk 0:00:38.6]} 39. Rf7+ {[%clk 0:00:28]} 39... Ke4 {[%clk
0:00:38.9]} 40. Rxf2 {[%clk 0:00:27.3]} 40... Rh5 {[%clk 0:00:38.4]} 41. Qxg6+
{[%clk 0:00:26.6]} 1-0

[Event "*** Titled Tuesday Blitz"]
[Site "Chess.com"]
[Date "2020.11.10"]
[Round "11"]
[White "Zarikovs1999"]
[Black "bazar-wokzal"]
[Result "0-1"]
[WhiteElo "2382"]
[BlackElo "2507"]
[TimeControl "180+1"]
[EndTime "12:12:57 PST"]
[Termination "bazar-wokzal won by resignation"]

1. e4 {[%clk 0:03:00.9]} 1... c5 {[%clk 0:02:55.9]} 2. Nf3 {[%clk 0:03:00.5]}
2... d6 {[%clk 0:02:55.9]} 3. d4 {[%clk 0:03:00]} 3... cxd4 {[%clk 0:02:56.2]}
4. Nxd4 {[%clk 0:03:00.9]} 4... Nf6 {[%clk 0:02:56.7]} 5. f3 {[%clk 0:02:58.6]}
5... e5 {[%clk 0:02:52]} 6. Nb3 {[%clk 0:02:58.6]} 6... d5 {[%clk 0:02:51]} 7.
Bb5+ {[%clk 0:02:37.7]} 7... Nc6 {[%clk 0:02:50]} 8. Bg5 {[%clk 0:02:34.2]} 8...
Be6 {[%clk 0:02:39.4]} 9. Bxf6 {[%clk 0:02:12.7]} 9... gxf6 {[%clk 0:02:38.4]}
10. exd5 {[%clk 0:02:09.5]} 10... Qxd5 {[%clk 0:02:37.5]} 11. Qxd5 {[%clk
0:02:07.6]} 11... Bxd5 {[%clk 0:02:37.4]} 12. Nc3 {[%clk 0:02:08.5]} 12... Be6
{[%clk 0:02:22.1]} 13. Na5 {[%clk 0:02:04.4]} 13... Rc8 {[%clk 0:02:03.6]} 14.
Nxb7 {[%clk 0:01:58.4]} 14... Bb4 {[%clk 0:02:03.1]} 15. O-O-O {[%clk
0:01:52.3]} 15... Ke7 {[%clk 0:01:49]} 16. a3 {[%clk 0:01:41]} 16... Bxc3 {[%clk
0:01:45.9]} 17. bxc3 {[%clk 0:01:40.1]} 17... Rc7 {[%clk 0:01:33.9]} 18. Nc5
{[%clk 0:01:34.9]} 18... Na5 {[%clk 0:01:19.4]} 19. Nxe6 {[%clk 0:01:30.3]}
19... fxe6 {[%clk 0:01:18.7]} 20. Rd3 {[%clk 0:01:28.5]} 20... Rg8 {[%clk
0:01:13]} 21. Rhd1 {[%clk 0:01:25]} 21... Rg7 {[%clk 0:00:24.1]} 22. Rd8 {[%clk
0:01:01]} 22... f5 {[%clk 0:00:21.7]} 23. Re8+ {[%clk 0:00:44.3]} 23... Kf6
{[%clk 0:00:22]} 24. Rd6 {[%clk 0:00:44.4]} 24... Rge7 {[%clk 0:00:20.2]} 25.
Rxe7 {[%clk 0:00:39.2]} 25... Kxe7 {[%clk 0:00:18.1]} 26. Ra6 {[%clk 0:00:39.6]}
26... Nc4 {[%clk 0:00:18.4]} 27. Bxc4 {[%clk 0:00:38.6]} 27... Rxc4 {[%clk
0:00:18.7]} 28. Rxa7+ {[%clk 0:00:39.5]} 28... Kf6 {[%clk 0:00:19]} 29. Rxh7
{[%clk 0:00:38.8]} 29... Rxc3 {[%clk 0:00:19.4]} 30. Kb2 {[%clk 0:00:38.7]}
30... Re3 {[%clk 0:00:19.3]} 31. Rh6+ {[%clk 0:00:37.7]} 31... Ke7 {[%clk
0:00:18.6]} 32. a4 {[%clk 0:00:35.7]} 32... e4 {[%clk 0:00:18.7]} 33. fxe4
{[%clk 0:00:36.6]} 33... Rxe4 {[%clk 0:00:18.7]} 34. Kb3 {[%clk 0:00:37]} 34...
f4 {[%clk 0:00:17.9]} 35. Rh4 {[%clk 0:00:33.5]} 35... e5 {[%clk 0:00:17.7]} 36.
g3 {[%clk 0:00:25.3]} 36... Re3+ {[%clk 0:00:17.1]} 37. c3 {[%clk 0:00:23.4]}
37... f3 {[%clk 0:00:17.6]} 38. Rh5 {[%clk 0:00:16.4]} 38... Ke6 {[%clk
0:00:17.1]} 39. Rh8 {[%clk 0:00:16.1]} 39... e4 {[%clk 0:00:16.6]} 40. Kc4
{[%clk 0:00:13.9]} 40... f2 {[%clk 0:00:16.4]} 41. Rf8 {[%clk 0:00:09.2]} 41...
Rf3 {[%clk 0:00:16.6]} 0-1

[Event "*** Titled Tuesday Blitz"]
[Site "Chess.com"]
[Date "2020.11.10"]
[Round "11"]
[White "Vanina1989"]
[Black "anon102030"]
[Result "1-0"]
[WhiteElo "2663"]
[BlackElo "2742"]
[TimeControl "180+1"]
[EndTime "12:12:58 PST"]
[Termination "Vanina1989 won by resignation"]

1. d4 {[%clk 0:03:00.9]} 1... Nf6 {[%clk 0:02:57.3]} 2. c4 {[%clk 0:03:01.2]}
2... e5 {[%clk 0:02:57]} 3. dxe5 {[%clk 0:03:00.6]} 3... Ng4 {[%clk 0:02:57.5]}
4. Nf3 {[%clk 0:03:01]} 4... Nc6 {[%clk 0:02:56.4]} 5. e3 {[%clk 0:03:01.5]}
5... Ngxe5 {[%clk 0:02:55.2]} 6. Nxe5 {[%clk 0:03:00.7]} 6... Nxe5 {[%clk
0:02:54.7]} 7. Nc3 {[%clk 0:03:01.3]} 7... g6 {[%clk 0:02:51.1]} 8. Be2 {[%clk
0:03:01.4]} 8... Bg7 {[%clk 0:02:51.3]} 9. O-O {[%clk 0:03:01.7]} 9... d6 {[%clk
0:02:51.9]} 10. e4 {[%clk 0:02:56.3]} 10... O-O {[%clk 0:02:52]} 11. Be3 {[%clk
0:02:56.2]} 11... f5 {[%clk 0:02:51]} 12. exf5 {[%clk 0:02:54.7]} 12... Bxf5
{[%clk 0:02:47.5]} 13. h3 {[%clk 0:02:52.5]} 13... Be6 {[%clk 0:02:41.6]} 14.
Qb3 {[%clk 0:02:42.1]} 14... Qd7 {[%clk 0:02:34.9]} 15. f4 {[%clk 0:02:21.4]}
15... Nc6 {[%clk 0:02:34.2]} 16. Rad1 {[%clk 0:02:18.7]} 16... Qf7 {[%clk
0:02:20.9]} 17. Nd5 {[%clk 0:02:01.1]} 17... b6 {[%clk 0:02:17.4]} 18. Bf3
{[%clk 0:01:57.8]} 18... Na5 {[%clk 0:02:16.4]} 19. Qc2 {[%clk 0:01:53.6]} 19...
c6 {[%clk 0:02:15]} 20. Nb4 {[%clk 0:01:28]} 20... Nxc4 {[%clk 0:02:08.7]} 21.
Bf2 {[%clk 0:01:28.2]} 21... d5 {[%clk 0:01:59.2]} 22. Nxc6 {[%clk 0:01:27.6]}
22... Rac8 {[%clk 0:01:58.5]} 23. Nd4 {[%clk 0:00:59.5]} 23... Bxd4 {[%clk
0:01:34.7]} 24. Bxd4 {[%clk 0:00:52.2]} 24... Ne3 {[%clk 0:01:34.5]} 25. Qe2
{[%clk 0:00:52.5]} 25... Nxf1 {[%clk 0:01:27.5]} 26. Rxf1 {[%clk 0:00:48.2]}
26... Bf5 {[%clk 0:01:07]} 27. Qe5 {[%clk 0:00:45.9]} 27... Qd7 {[%clk
0:00:43.7]} 28. Qh8+ {[%clk 0:00:45.5]} 28... Kf7 {[%clk 0:00:43.8]} 29. Qg7+
{[%clk 0:00:41.6]} 29... Ke8 {[%clk 0:00:41.9]} 30. Re1+ {[%clk 0:00:40.3]}
30... Be4 {[%clk 0:00:41.4]} 31. Bxe4 {[%clk 0:00:35.8]} 31... Qxg7 {[%clk
0:00:37.3]} 32. Bxg7 {[%clk 0:00:28.1]} 32... Kd7 {[%clk 0:00:37.4]} 33. Bxf8
{[%clk 0:00:27]} 33... dxe4 {[%clk 0:00:32]} 34. Bg7 {[%clk 0:00:26.9]} 34...
Rc4 {[%clk 0:00:18.8]} 35. Bc3 {[%clk 0:00:26.8]} 35... Ke6 {[%clk 0:00:18.3]}
36. Kf2 {[%clk 0:00:26.8]} 36... b5 {[%clk 0:00:17.2]} 37. a3 {[%clk 0:00:26.9]}
37... h5 {[%clk 0:00:15.1]} 38. Rd1 {[%clk 0:00:26.8]} 38... a6 {[%clk
0:00:13.6]} 39. Ke3 {[%clk 0:00:26.7]} 39... Kf5 {[%clk 0:00:12.1]} 40. Rd5+
{[%clk 0:00:26]} 40... Ke6 {[%clk 0:00:12.4]} 41. Re5+ {[%clk 0:00:26.5]} 41...
Kf7 {[%clk 0:00:13]} 42. Rxe4 {[%clk 0:00:26.9]} 42... Rc7 {[%clk 0:00:13.5]}
43. Rd4 {[%clk 0:00:27.2]} 43... Re7+ {[%clk 0:00:13.7]} 44. Kf3 {[%clk
0:00:27.7]} 44... Rc7 {[%clk 0:00:14.6]} 45. Rd6 {[%clk 0:00:27.8]} 45... Ra7
{[%clk 0:00:14.2]} 46. Rf6+ {[%clk 0:00:28.1]} 1-0

[Event "*** Titled Tuesday Blitz"]
[Site "Chess.com"]
[Date "2020.11.10"]
[Round "11"]
[White "Klavdia_Nik"]
[Black "zivicd"]
[Result "1-0"]
[WhiteElo "2124"]
[BlackElo "2225"]
[TimeControl "180+1"]
[EndTime "12:12:58 PST"]
[Termination "Klavdia_Nik won on time"]

1. Nf3 {[%clk 0:03:00.9]} 1... Nf6 {[%clk 0:02:50.1]} 2. c4 {[%clk 0:03:00.2]}
2... g6 {[%clk 0:02:47.9]} 3. b3 {[%clk 0:02:58.6]} 3... d6 {[%clk 0:02:47.9]}
4. d4 {[%clk 0:02:57.1]} 4... Bg7 {[%clk 0:02:47.6]} 5. Bb2 {[%clk 0:02:56.9]}
5... O-O {[%clk 0:02:48.2]} 6. Nc3 {[%clk 0:02:52.9]} 6... Nbd7 {[%clk
0:02:47.9]} 7. d5 {[%clk 0:02:48.9]} 7... e5 {[%clk 0:02:42.9]} 8. dxe6 {[%clk
0:02:47.9]} 8... fxe6 {[%clk 0:02:43.8]} 9. g3 {[%clk 0:02:48.2]} 9... e5 {[%clk
0:02:43.6]} 10. Bg2 {[%clk 0:02:48.9]} 10... a5 {[%clk 0:02:40]} 11. O-O {[%clk
0:02:47.8]} 11... Nc5 {[%clk 0:02:38.4]} 12. Nb5 {[%clk 0:02:34.1]} 12... Kh8
{[%clk 0:02:26.2]} 13. h3 {[%clk 0:02:30.3]} 13... Nfe4 {[%clk 0:02:25]} 14. Nd2
{[%clk 0:02:19.6]} 14... Nxd2 {[%clk 0:02:09.1]} 15. Qxd2 {[%clk 0:02:18.9]}
15... Bd7 {[%clk 0:02:05.9]} 16. Nc3 {[%clk 0:01:53]} 16... Bc6 {[%clk 0:01:53]}
17. Nd5 {[%clk 0:01:52.3]} 17... Rf7 {[%clk 0:01:47.1]} 18. e4 {[%clk
0:01:35.9]} 18... Qd7 {[%clk 0:01:37.1]} 19. Rad1 {[%clk 0:01:24.6]} 19... b6
{[%clk 0:01:33.2]} 20. Bc3 {[%clk 0:01:20.2]} 20... Raf8 {[%clk 0:01:32.8]} 21.
Qc2 {[%clk 0:01:09.5]} 21... Qc8 {[%clk 0:01:28.6]} 22. a3 {[%clk 0:01:04.4]}
22... Bd7 {[%clk 0:01:27.3]} 23. Kh2 {[%clk 0:01:01.8]} 23... Ne6 {[%clk
0:01:25.8]} 24. Qb2 {[%clk 0:00:57.9]} 24... Ng5 {[%clk 0:01:18.1]} 25. f4
{[%clk 0:00:37.9]} 25... Nxh3 {[%clk 0:00:58.3]} 26. fxe5 {[%clk 0:00:34.4]}
26... Rxf1 {[%clk 0:00:51.6]} 27. Rxf1 {[%clk 0:00:33.4]} 27... Rxf1 {[%clk
0:00:47.1]} 28. Bxf1 {[%clk 0:00:33.4]} 28... Qf8 {[%clk 0:00:23]} 29. Bxh3
{[%clk 0:00:28.3]} 29... Bxh3 {[%clk 0:00:22.6]} 30. Kxh3 {[%clk 0:00:28.6]}
30... Qf1+ {[%clk 0:00:22.7]} 31. Kh2 {[%clk 0:00:26.8]} 31... dxe5 {[%clk
0:00:15.6]} 32. Bxe5 {[%clk 0:00:26.1]} 32... Bxe5 {[%clk 0:00:09]} 33. Qxe5+
{[%clk 0:00:25.7]} 33... Kg8 {[%clk 0:00:09.2]} 34. Nf6+ {[%clk 0:00:19.4]}
34... Kf7 {[%clk 0:00:07.8]} 35. Ng4 {[%clk 0:00:16.6]} 35... Qe2+ {[%clk
0:00:03.6]} 36. Kh3 {[%clk 0:00:16.9]} 36... Qf1+ {[%clk 0:00:03.3]} 37. Kh4
{[%clk 0:00:16.4]} 1-0

[Event "*** Titled Tuesday Blitz"]
[Site "Chess.com"]
[Date "2020.11.10"]
[Round "11"]
[White "Goryachkina"]
[Black "IceBelka"]
[Result "1-0"]
[WhiteElo "2592"]
[BlackElo "2363"]
[TimeControl "180+1"]
[EndTime "12:12:59 PST"]
[Termination "Goryachkina won by resignation"]

1. Nf3 {[%clk 0:02:59.6]} 1... d5 {[%clk 0:02:36.6]} 2. e3 {[%clk 0:02:59.1]}
2... c5 {[%clk 0:02:28.1]} 3. b3 {[%clk 0:02:52.7]} 3... Nc6 {[%clk 0:02:27]} 4.
Bb2 {[%clk 0:02:52.5]} 4... Nf6 {[%clk 0:02:24.5]} 5. d4 {[%clk 0:02:47.8]} 5...
cxd4 {[%clk 0:02:22.4]} 6. Nxd4 {[%clk 0:02:47.8]} 6... Nxd4 {[%clk 0:02:19.9]}
7. Qxd4 {[%clk 0:02:42.8]} 7... e6 {[%clk 0:02:16.4]} 8. Be2 {[%clk 0:02:35.6]}
8... Qc7 {[%clk 0:02:11.9]} 9. O-O {[%clk 0:02:14.3]} 9... Bd7 {[%clk 0:02:01]}
10. c4 {[%clk 0:02:10.3]} 10... dxc4 {[%clk 0:01:57.5]} 11. Bxc4 {[%clk
0:02:07.4]} 11... Bd6 {[%clk 0:01:44.8]} 12. h3 {[%clk 0:01:58.8]} 12... Bc6
{[%clk 0:01:24.6]} 13. Nc3 {[%clk 0:01:30.2]} 13... a6 {[%clk 0:01:24]} 14. Rfd1
{[%clk 0:01:21.3]} 14... Rd8 {[%clk 0:01:12]} 15. Qh4 {[%clk 0:01:13.9]} 15...
O-O {[%clk 0:01:10.3]} 16. Rac1 {[%clk 0:01:02.5]} 16... Bh2+ {[%clk 0:01:06.5]}
17. Kh1 {[%clk 0:01:01.3]} 17... Be5 {[%clk 0:01:06.5]} 18. f4 {[%clk
0:00:53.5]} 18... Bxc3 {[%clk 0:00:50.6]} 19. Bxc3 {[%clk 0:00:52.3]} 19... Ne4
{[%clk 0:00:50.7]} 20. Be5 {[%clk 0:00:48.2]} 20... Qa5 {[%clk 0:00:40.7]} 21.
a4 {[%clk 0:00:38.3]} 21... Rd2 {[%clk 0:00:35.9]} 22. Kh2 {[%clk 0:00:11.5]}
22... Ng5 {[%clk 0:00:11]} 23. Qxg5 {[%clk 0:00:07]} 23... Rxg2+ {[%clk
0:00:10.2]} 24. Qxg2 {[%clk 0:00:07.8]} 24... Bxg2 {[%clk 0:00:10.4]} 25. Kxg2
{[%clk 0:00:08.7]} 25... f6 {[%clk 0:00:06.6]} 26. Bxe6+ {[%clk 0:00:06.4]}
26... Kh8 {[%clk 0:00:06.9]} 27. Bc3 {[%clk 0:00:05.2]} 27... Qh5 {[%clk
0:00:06.4]} 28. Bg4 {[%clk 0:00:04.8]} 28... Qg6 {[%clk 0:00:06.6]} 29. Kf2
{[%clk 0:00:04.1]} 29... Qe4 {[%clk 0:00:06.6]} 30. Bf3 {[%clk 0:00:04.1]} 30...
Qf5 {[%clk 0:00:06.8]} 31. Bg4 {[%clk 0:00:04.4]} 31... Qe4 {[%clk 0:00:06.9]}
32. Bd4 {[%clk 0:00:04.8]} 32... Qe7 {[%clk 0:00:03.3]} 33. Bc5 {[%clk
0:00:04.2]} 33... Qe8 {[%clk 0:00:03.7]} 34. Bxf8 {[%clk 0:00:04.3]} 34... Qxf8
{[%clk 0:00:04.6]} 35. Rc8 {[%clk 0:00:04.3]} 35... Qxc8 {[%clk 0:00:05.1]} 36.
Bxc8 {[%clk 0:00:04.8]} 1-0

[Event "*** Titled Tuesday Blitz"]
[Site "Chess.com"]
[Date "2020.11.10"]
[Round "11"]
[White "monalize"]
[Black "profofchess"]
[Result "1-0"]
[WhiteElo "2327"]
[BlackElo "2408"]
[TimeControl "180+1"]
[EndTime "12:13:03 PST"]
[Termination "monalize won on time"]

1. e4 {[%clk 0:02:21]} 1... e6 {[%clk 0:02:59.1]} 2. d4 {[%clk 0:02:19.8]} 2...
d5 {[%clk 0:02:58.5]} 3. Nd2 {[%clk 0:02:20]} 3... Nf6 {[%clk 0:02:57]} 4. e5
{[%clk 0:02:19.5]} 4... Nfd7 {[%clk 0:02:57.1]} 5. Bd3 {[%clk 0:02:19.4]} 5...
c5 {[%clk 0:02:57.5]} 6. c3 {[%clk 0:02:19.1]} 6... Nc6 {[%clk 0:02:57.6]} 7.
Ne2 {[%clk 0:02:17.6]} 7... cxd4 {[%clk 0:02:57.8]} 8. cxd4 {[%clk 0:02:16.9]}
8... f6 {[%clk 0:02:58.7]} 9. exf6 {[%clk 0:02:15.9]} 9... Nxf6 {[%clk
0:02:59.6]} 10. Nf3 {[%clk 0:02:15.9]} 10... Bd6 {[%clk 0:02:59.7]} 11. O-O
{[%clk 0:02:15.2]} 11... Qc7 {[%clk 0:02:59.7]} 12. b3 {[%clk 0:02:14.9]} 12...
O-O {[%clk 0:02:54.5]} 13. Bb2 {[%clk 0:02:14.1]} 13... Bd7 {[%clk 0:02:28.6]}
14. Rc1 {[%clk 0:02:12.8]} 14... Rae8 {[%clk 0:01:22.2]} 15. Ng3 {[%clk
0:02:06.5]} 15... Qb8 {[%clk 0:01:20.9]} 16. Re1 {[%clk 0:02:03.7]} 16... Bf4
{[%clk 0:01:20.7]} 17. Rc3 {[%clk 0:01:55.6]} 17... Re7 {[%clk 0:01:16.6]} 18.
Bb1 {[%clk 0:01:54.7]} 18... Be8 {[%clk 0:01:15.1]} 19. a3 {[%clk 0:01:43.5]}
19... Nh5 {[%clk 0:01:07.5]} 20. b4 {[%clk 0:01:35]} 20... a6 {[%clk 0:01:03.3]}
21. Bc1 {[%clk 0:01:12.9]} 21... Bd6 {[%clk 0:01:00.2]} 22. Rce3 {[%clk
0:01:07.3]} 22... Nf4 {[%clk 0:00:40.8]} 23. Ng5 {[%clk 0:01:02]} 23... Bg6
{[%clk 0:00:27.2]} 24. Bxg6 {[%clk 0:00:55.1]} 24... hxg6 {[%clk 0:00:26.6]} 25.
Nxe6 {[%clk 0:00:54.6]} 25... Nxe6 {[%clk 0:00:23.6]} 26. Rxe6 {[%clk
0:00:54.3]} 26... Rfe8 {[%clk 0:00:13.3]} 27. Rxe7 {[%clk 0:00:52.3]} 27... Rxe7
{[%clk 0:00:14.2]} 28. Rxe7 {[%clk 0:00:51.8]} 28... Bxe7 {[%clk 0:00:12.7]} 29.
Be3 {[%clk 0:00:43.6]} 29... Bf6 {[%clk 0:00:11.9]} 30. Ne2 {[%clk 0:00:35.7]}
30... a5 {[%clk 0:00:08.7]} 31. b5 {[%clk 0:00:35.1]} 31... Ne7 {[%clk
0:00:08.8]} 32. a4 {[%clk 0:00:35.1]} 32... Qd6 {[%clk 0:00:07.4]} 33. Qb3
{[%clk 0:00:31.3]} 33... Nf5 {[%clk 0:00:05.3]} 34. Nc3 {[%clk 0:00:28.8]} 34...
Nxe3 {[%clk 0:00:04.7]} 35. fxe3 {[%clk 0:00:27.9]} 35... Kh7 {[%clk 0:00:03.3]}
36. Nxd5 {[%clk 0:00:25.7]} 36... Qe6 {[%clk 0:00:02.4]} 37. Nxf6+ {[%clk
0:00:23.6]} 37... Qxf6 {[%clk 0:00:02.7]} 38. Qd3 {[%clk 0:00:22.5]} 38... Qe6
{[%clk 0:00:02.8]} 39. d5 {[%clk 0:00:22.1]} 39... Qe5 {[%clk 0:00:02.6]} 40. d6
{[%clk 0:00:21.3]} 40... Qa1+ {[%clk 0:00:02.6]} 41. Kf2 {[%clk 0:00:20.9]}
41... Qb2+ {[%clk 0:00:02.7]} 42. Kf3 {[%clk 0:00:19.8]} 42... Qf6+ {[%clk
0:00:02.4]} 43. Ke2 {[%clk 0:00:17.9]} 43... Qb2+ {[%clk 0:00:01.3]} 44. Qd2
{[%clk 0:00:17.9]} 1-0